fUSD/lending_fUSD_20250511
["ID","MTS","AMOUNT","RATE_DAILY","PERIOD"]
[360688275,1746929456101,-400.0,0.00019986,2]
[360688276,1746929456111,-312.02513819,0.00019986,2]
[360688277,1746929456288,-499.54,0.00019986,2]
[360688278,1746929456298,-7664.9360377,0.00019986,2]
[360688279,1746929456308,-206.82721966,0.00019986,2]
[360688280,1746929456318,-400.0,0.00019986,2]
[360688281,1746929456328,-6504.18129557,0.00019986,2]
[360688282,1746929456624,-33878.03712389,0.00019986,2]
[360688283,1746929456732,-4653.68026753,0.00019986,2]
[360688284,1746929456744,-29778.72892147,0.00019986,2]
[360688285,1746929456766,-400.0,0.00019885,2]
[360688286,1746929456775,-9253.19940514,0.00019986,2]
[360688287,1746929456785,-930.29,0.00019986,2]
[360688288,1746929456794,-445.7693035,0.00019986,2]
[360688289,1746929456804,-400.0,0.00019986,2]
[360688290,1746929456813,-400.0,0.00019986,2]
[360688291,1746929456822,-400.0,0.00019986,2]
[360688292,1746929456831,-459.74,0.00019986,2]
[360688293,1746929456841,-481.41,0.00019986,2]
[360688294,1746929456850,-400.0,0.00019986,2]
[360688295,1746929456859,-830.57,0.00019986,2]
[360688296,1746929456869,-506.3092848,0.00019986,2]
[360688297,1746929456879,-400.0,0.00019986,2]
[360688298,1746929456889,-469.57,0.00019986,2]
[360688299,1746929456899,-400.0,0.00019986,2]
[360688300,1746929456908,-400.0,0.00019986,2]
[360688301,1746929456917,-3107.0995683,0.00019986,2]
[360688302,1746929456927,-400.0,0.00019986,2]
[360688303,1746929456938,-497.73,0.00019986,2]
[360688304,1746929456948,-592.98,0.00019986,2]
[360688305,1746929456958,-151.92469,0.00019986,2]
[360688306,1746929456968,-491.47345835,0.00019986,2]
[360688307,1746929456977,-400.0,0.00019986,2]
[360688308,1746929456988,-400.0,0.00019986,2]
[360688309,1746929456997,-542.69,0.00019986,2]
[360688310,1746929457007,-400.0,0.00019986,2]
[360688311,1746929457017,-553.01,0.00019986,2]
[360688312,1746929457027,-400.0,0.00019987,2]
[360688313,1746929457037,-400.0,0.00019987,2]
[360688314,1746929457047,-400.0,0.00019987,2]
[360688315,1746929457056,-461.5913729,0.00019987,2]
[360688316,1746929457066,-400.0,0.00019987,2]
[360688317,1746929457076,-400.0,0.00019987,2]
[360688318,1746929457086,-492.36,0.00019987,2]
[360688319,1746929457095,-400.0,0.00019987,2]
[360688320,1746929457105,-400.0,0.00019987,2]
[360688321,1746929457114,-400.0,0.00019987,2]
[360688322,1746929457123,-400.0,0.00019987,2]
[360688323,1746929457132,-476.35459182,0.00019987,2]
[360688324,1746929457142,-400.0,0.00019987,2]
[360688325,1746929457151,-400.0,0.00019987,2]
[360688326,1746929457161,-400.0,0.00019987,2]
[360688327,1746929457170,-400.0,0.00019987,2]
[360688328,1746929457180,-225.21956715,0.00019987,2]
[360688329,1746929457192,-400.0,0.00019987,2]
[360688330,1746929457201,-400.0,0.00019987,2]
[360688331,1746929457211,-277.00318046,0.00019987,2]
[360688332,1746929457220,-400.0,0.00019987,2]
[360688333,1746929457230,-255.58753282,0.00019987,2]
[360688334,1746929457240,-456.34185221,0.00019987,2]
[360688335,1746929457249,-400.0,0.00019987,2]
[360688336,1746929457260,-333.38923737,0.00019987,2]
[360688337,1746929457270,-428.34582148,0.00019987,2]
[360688338,1746929457280,-400.0,0.00019987,2]
[360688339,1746929457290,-400.0,0.00019987,2]
[360688340,1746929457301,-289.91228581,0.00019987,2]
[360688341,1746929457310,-469.67824208,0.00019987,2]
[360688342,1746929457320,-160.04280143,0.00019987,2]
[360688343,1746929457329,-400.0,0.00019987,2]
[360688344,1746929457338,-400.0,0.00019987,2]
[360688345,1746929457347,-400.0,0.00019987,2]
[360688346,1746929457357,-400.0,0.00019987,2]
[360688347,1746929457367,-400.0,0.00019987,2]
[360688348,1746929457376,-400.0,0.00019987,2]
[360688349,1746929457384,-400.0,0.00019987,2]
[360688350,1746929457394,-400.0,0.00019987,2]
[360688351,1746929457405,-400.0,0.00019987,2]
[360688352,1746929457414,-400.0,0.00019987,2]
[360688353,1746929457424,-400.0,0.00019987,2]
[360688354,1746929457435,-400.0,0.00019987,2]
[360688355,1746929457444,-400.0,0.00019987,2]
[360688356,1746929457453,-231.54491999,0.00019987,2]
[360688357,1746929457462,-422.20875975,0.00019987,2]
[360688358,1746929457471,-400.0,0.00019987,2]
[360688359,1746929457481,-506.72146993,0.00019987,2]
[360688360,1746929457491,-432.91,0.00019987,2]
[360688361,1746929457504,-400.0,0.00019987,2]
[360688362,1746929457513,-411.84442164,0.00019987,2]
[360688363,1746929457522,-400.0,0.00019987,2]
[360688364,1746929457532,-400.0,0.00019987,2]
[360688365,1746929457541,-486.0,0.00019987,2]
[360688366,1746929457550,-400.0,0.00019987,2]
[360688367,1746929457561,-400.0,0.00019987,2]
[360688368,1746929457570,-400.0,0.00019987,2]
[360688369,1746929457580,-315.30574766,0.00019987,2]
[360688370,1746929457589,-400.0,0.00019987,2]
[360688371,1746929457599,-400.0,0.00019987,2]
[360688372,1746929457608,-400.0,0.00019987,2]
[360688373,1746929457617,-400.0,0.00019987,2]
[360688374,1746929457627,-400.0,0.00019987,2]
[360688375,1746929457636,-400.0,0.00019987,2]
[360688376,1746929457645,-367.12046432,0.00019987,2]
[360688377,1746929457655,-400.0,0.00019987,2]
[360688378,1746929457664,-400.0,0.00019987,2]
[360688379,1746929457674,-319.53112259,0.00019987,2]
[360688380,1746929457703,-80.46887741,0.00019987,2]
[360688381,1746929457712,-430.58832128,0.00019987,2]
[360688382,1746929457722,-400.0,0.00019987,2]
[360688383,1746929457731,-400.0,0.00019987,2]
[360688384,1746929457741,-400.0,0.00019987,2]
[360688385,1746929457751,-400.0,0.00019987,2]
[360688386,1746929457760,-400.0,0.00019987,2]
[360688387,1746929457770,-400.0,0.00019987,2]
[360688388,1746929457779,-400.0,0.00019987,2]
[360688389,1746929457789,-132.18136728,0.00019987,2]
[360688390,1746929458107,-400.0,0.00019885,2]
[360688391,1746929458118,-400.0,0.00019887,2]
[360688392,1746929458128,-400.0,0.00019887,2]
[360688393,1746929458138,-400.0,0.00019888,2]
[360688394,1746929458148,-400.0,0.00019888,2]
[360688395,1746929458157,-400.0,0.00019984,2]
[360688396,1746929458166,-400.0,0.00019986,2]
[360688397,1746929458176,-240.69466733,0.00019987,2]
[360688398,1746929458188,-27.12396539,0.00019987,2]
[360688399,1746929458199,-400.0,0.00019987,2]
[360688400,1746929458208,-400.0,0.00019987,2]
[360688401,1746929458219,-400.0,0.00019987,2]
[360688402,1746929458229,-400.0,0.00019987,2]
[360688403,1746929458239,-400.0,0.00019987,2]
[360688404,1746929458248,-300.17177173,0.00019987,2]
[360688405,1746929458629,-99.82822827,0.00019987,2]
[360688406,1746929458639,-180.93355307,0.00019987,2]
[360688407,1746929458650,-219.06644693,0.00019987,2]
[360688408,1746929458660,-400.0,0.00019987,2]
[360688409,1746929458669,-586.11,0.00019987,2]
[360688410,1746929458679,-400.0,0.00019987,2]
[360688411,1746929458689,-408.09324762,0.00019987,2]
[360688412,1746929458699,-454.96031342,0.00019987,2]
[360688413,1746929458708,-411.24,0.00019987,2]
[360688414,1746929458717,-151.0,0.00019987,2]
[360688415,1746929458726,-272.90635869,0.00019987,2]
[360688416,1746929458735,-400.0,0.00019987,2]
[360688417,1746929458744,-533.52914264,0.00019987,2]
[360688418,1746929458753,-400.0,0.00019987,2]
[360688419,1746929458762,-400.0,0.00019987,2]
[360688420,1746929458772,-400.0,0.00019987,2]
[360688421,1746929458781,-400.0,0.00019987,2]
[360688422,1746929458790,-325.77894827,0.00019987,2]
[360688423,1746929458799,-400.0,0.00019987,2]
[360688424,1746929458808,-359.31094903,0.00019987,2]
[360688425,1746929458818,-256.19765397,0.00019987,2]
[360688426,1746929458827,-318.7,0.00019987,2]
[360688427,1746929458837,-185.85816729,0.00019987,2]
[360688428,1746929458846,-400.0,0.00019987,2]
[360688429,1746929458855,-201.61128017,0.00019987,2]
[360688430,1746929458865,-186.16,0.00019987,2]
[360688431,1746929458875,-400.0,0.00019987,2]
[360688432,1746929458884,-500.0,0.00019987,2]
[360688433,1746929458893,-178.99824729,0.00019987,2]
[360688434,1746929458902,-400.0,0.00019987,2]
[360688435,1746929458911,-240.034157,0.00019987,2]
[360688436,1746929458920,-400.0,0.00019987,2]
[360688437,1746929458929,-240.034157,0.00019987,2]
[360688438,1746929458941,-1374.67,0.00019987,2]
[360688439,1746929458950,-400.0,0.00019987,2]
[360688440,1746929458959,-400.0,0.00019987,2]
[360688441,1746929458968,-495.77,0.00019987,2]
[360688442,1746929458978,-271.23328625,0.00019987,2]
[360688443,1746929458987,-554.07,0.00019987,2]
[360688444,1746929458996,-471.48326181,0.00019987,2]
[360688445,1746929459006,-400.0,0.00019987,2]
[360688446,1746929459015,-400.0,0.00019987,2]
[360688447,1746929459024,-400.0,0.00019987,2]
[360688448,1746929459033,-233.46560126,0.00019987,2]
[360688449,1746929459042,-400.0,0.00019987,2]
[360688450,1746929459051,-400.0,0.00019987,2]
[360688451,1746929459060,-400.0,0.00019987,2]
[360688452,1746929459069,-512.94,0.00019987,2]
[360688453,1746929459078,-400.0,0.00019987,2]
[360688454,1746929459087,-313.26557362,0.00019987,2]
[360688455,1746929459096,-269.21538691,0.00019987,2]
[360688456,1746929459106,-449.18491847,0.00019987,2]
[360688457,1746929459117,-400.0,0.00019987,2]
[360688458,1746929459126,-400.0,0.00019987,2]
[360688459,1746929459136,-1215.92,0.00019987,2]
[360688460,1746929459145,-400.0,0.00019987,2]
[360688461,1746929459155,-223.70605112,0.00019987,2]
[360688462,1746929459164,-400.0,0.00019987,2]
[360688463,1746929459174,-346.56491142,0.00019987,2]
[360688464,1746929459183,-161.642186,0.00019987,2]
[360688465,1746929459193,-400.0,0.00019987,2]
[360688466,1746929459203,-400.0,0.00019987,2]
[360688467,1746929459212,-151.0,0.00019987,2]
[360688468,1746929459222,-400.0,0.00019987,2]
[360688469,1746929459232,-252.62221404,0.00019987,2]
[360688470,1746929459241,-400.0,0.00019987,2]
[360688471,1746929459251,-400.0,0.00019987,2]
[360688472,1746929459260,-400.0,0.00019987,2]
[360688473,1746929459269,-400.0,0.00019987,2]
[360688474,1746929459279,-400.0,0.00019987,2]
[360688475,1746929459288,-400.0,0.00019987,2]
[360688476,1746929459298,-400.0,0.00019987,2]
[360688477,1746929459308,-422.72312085,0.00019987,2]
[360688478,1746929459318,-400.0,0.00019987,2]
[360688479,1746929459328,-13434.98882149,0.00019987,2]
[360688480,1746929459341,-8843.81117851,0.00019987,2]
[360688481,1746929459351,-151.0,0.00019987,2]
[360688482,1746929459360,-400.0,0.00019987,2]
[360688483,1746929459369,-400.0,0.00019987,2]
[360688484,1746929459378,-883.22,0.00019987,2]
[360688485,1746929459387,-400.0,0.00019987,2]
[360688486,1746929459396,-400.0,0.00019987,2]
[360688487,1746929459406,-400.0,0.00019987,2]
[360688488,1746929459415,-151.0,0.00019987,2]
[360688489,1746929459424,-400.0,0.00019987,2]
[360688490,1746929459434,-400.0,0.00019987,2]
[360688491,1746929459443,-455.54,0.00019987,2]
[360688492,1746929459453,-400.0,0.00019987,2]
[360688493,1746929459462,-400.0,0.00019987,2]
[360688494,1746929459472,-400.0,0.00019987,2]
[360688495,1746929459482,-400.0,0.00019987,2]
[360688496,1746929459496,-400.0,0.00019987,2]
[360688497,1746929459506,-400.0,0.00019987,2]
[360688498,1746929459516,-400.0,0.00019987,2]
[360688499,1746929459527,-400.0,0.00019987,2]
[360688500,1746929459537,-166.378399,0.00019987,2]
[360688501,1746929459546,-400.0,0.00019987,2]
[360688502,1746929459556,-400.0,0.00019987,2]
[360688503,1746929459566,-400.0,0.00019987,2]
[360688504,1746929459578,-400.0,0.00019987,2]
[360688505,1746929459589,-400.0,0.00019987,2]
[360688506,1746929459598,-166.378399,0.00019987,2]
[360688507,1746929459608,-414.3681897,0.00019987,2]
[360688508,1746929459617,-400.0,0.00019987,2]
[360688509,1746929459627,-400.0,0.00019987,2]
[360688510,1746929459637,-400.0,0.00019987,2]
[360688511,1746929459646,-400.0,0.00019987,2]
[360688512,1746929459655,-400.0,0.00019987,2]
[360688513,1746929459666,-510.14,0.00019987,2]
[360688514,1746929459675,-179.664851,0.00019987,2]
[360688515,1746929459686,-261.66747183,0.00019987,2]
[360688516,1746929459696,-400.0,0.00019987,2]
[360688517,1746929459705,-400.0,0.00019987,2]
[360688518,1746929459715,-540.98388686,0.00019987,2]
[360688519,1746929459726,-400.0,0.00019987,2]
[360688520,1746929459735,-178.99022,0.00019987,2]
[360688521,1746929459745,-400.0,0.00019987,2]
[360688522,1746929459755,-400.0,0.00019987,2]
[360688523,1746929459764,-400.0,0.00019987,2]
[360688524,1746929459773,-400.0,0.00019987,2]
[360688525,1746929459783,-277.03,0.00019987,2]
[360688526,1746929459792,-400.0,0.00019987,2]
[360688527,1746929459802,-400.0,0.00019987,2]
[360688528,1746929459812,-400.0,0.00019987,2]
[360688529,1746929459822,-464.54,0.00019987,2]
[360688530,1746929459831,-400.0,0.00019987,2]
[360688531,1746929459841,-400.0,0.00019987,2]
[360688532,1746929459851,-400.0,0.00019987,2]
[360688533,1746929459861,-210.46,0.00019987,2]
[360688534,1746929459871,-400.0,0.00019987,2]
[360688535,1746929459881,-400.0,0.00019987,2]
[360688536,1746929459891,-1799.822809,0.00019987,2]
[360688537,1746929459901,-672.34,0.00019987,2]
[360688538,1746929459911,-413.87622215,0.00019987,2]
[360688539,1746929459921,-494.69,0.00019987,2]
[360688540,1746929459930,-1799.822809,0.00019987,2]
[360688541,1746929459943,-353.49242644,0.00019987,2]
[360688542,1746929459952,-400.0,0.00019987,2]
[360688543,1746929459962,-400.0,0.00019987,2]
[360688544,1746929459971,-400.0,0.00019987,2]
[360688545,1746929459981,-497.52084244,0.00019987,2]
[360688546,1746929459991,-400.0,0.00019987,2]
[360688547,1746929460000,-422.467261,0.00019987,2]
[360688548,1746929460010,-400.0,0.00019987,2]
[360688549,1746929460020,-400.0,0.00019987,2]
[360688550,1746929460030,-151.0,0.00019987,2]
[360688551,1746929460039,-422.467261,0.00019987,2]
[360688552,1746929460049,-1677.61,0.00019987,2]
[360688553,1746929460059,-151.0,0.00019987,2]
[360688554,1746929460069,-400.0,0.00019987,2]
[360688555,1746929460079,-400.0,0.00019987,2]
[360688556,1746929460088,-400.0,0.00019987,2]
[360688557,1746929460098,-400.0,0.00019987,2]
[360688558,1746929460108,-400.0,0.00019987,2]
[360688559,1746929460117,-400.0,0.00019987,2]
[360688560,1746929460127,-151.0,0.00019987,2]
[360688561,1746929460137,-197.46,0.00019987,2]
[360688562,1746929460147,-1969.27,0.00019987,2]
[360688563,1746929460157,-400.0,0.00019987,2]
[360688564,1746929460167,-400.0,0.00019987,2]
[360688565,1746929460177,-400.0,0.00019987,2]
[360688566,1746929460189,-219.980177,0.00019987,2]
[360688567,1746929460199,-655.17,0.00019987,2]
[360688568,1746929460209,-400.0,0.00019987,2]
[360688569,1746929460219,-400.0,0.00019987,2]
[360688570,1746929460229,-155.103559,0.00019987,2]
[360688571,1746929460241,-930.04,0.00019987,2]
[360688572,1746929460251,-400.0,0.00019987,2]
[360688573,1746929460261,-400.0,0.00019987,2]
[360688574,1746929460270,-436.82,0.00019987,2]
[360688575,1746929460280,-235.88038585,0.00019987,2]
[360688576,1746929460290,-268.79750328,0.00019987,2]
[360688577,1746929460299,-3740.71,0.00019987,2]
[360688578,1746929460309,-589485.96067469,0.00019988,2]
[360688579,1746929460320,-400.0,0.00019988,2]
[360688580,1746929460329,-558.53,0.00019988,2]
[360688581,1746929460338,-400.0,0.00019988,2]
[360688582,1746929460348,-400.0,0.00019988,2]
[360688583,1746929460357,-400.0,0.00019988,2]
[360688584,1746929460367,-400.0,0.00019988,2]
[360688585,1746929460377,-400.0,0.00019988,2]
[360688586,1746929460387,-400.0,0.00019988,2]
[360688587,1746929460398,-400.0,0.00019988,2]
[360688588,1746929460408,-400.0,0.00019988,2]
[360688589,1746929460419,-400.0,0.00019988,2]
[360688590,1746929460430,-400.0,0.00019988,2]
[360688591,1746929460441,-400.0,0.00019988,2]
[360688592,1746929460450,-400.0,0.00019988,2]
[360688593,1746929460460,-400.0,0.00019988,2]
[360688594,1746929460469,-400.0,0.00019988,2]
[360688595,1746929460479,-400.0,0.00019988,2]
[360688596,1746929460489,-400.0,0.00019988,2]
[360688597,1746929460502,-400.0,0.00019988,2]
[360688598,1746929460511,-400.0,0.00019988,2]
[360688599,1746929460523,-400.0,0.00019988,2]
[360688600,1746929460535,-400.0,0.00019988,2]
[360688601,1746929460547,-429.75,0.00019988,2]
[360688602,1746929460557,-400.0,0.00019988,2]
[360688603,1746929460567,-400.0,0.00019988,2]
[360688604,1746929460576,-400.0,0.00019988,2]
[360688605,1746929460586,-400.0,0.00019988,2]
[360688606,1746929460597,-400.0,0.00019988,2]
[360688607,1746929460607,-400.0,0.00019988,2]
[360688608,1746929460617,-400.0,0.00019988,2]
[360688609,1746929460627,-400.0,0.00019988,2]
[360688610,1746929460639,-400.0,0.00019988,2]
[360688611,1746929460648,-400.0,0.00019988,2]
[360688612,1746929460658,-400.0,0.00019988,2]
[360688613,1746929460667,-352.18226435,0.00019994,2]
[360688614,1746929460676,-402.05016958,0.00019994,2]
[360688615,1746929460686,-400.0,0.00019994,2]
[360688616,1746929460695,-558.53,0.00019994,2]
[360688617,1746929460706,-400.0,0.00019994,2]
[360688618,1746929460718,-400.0,0.00019994,2]
[360688619,1746929460729,-400.0,0.00019994,2]
[360688620,1746929460738,-400.0,0.00019994,2]
[360688621,1746929460748,-400.0,0.00019994,2]
[360688622,1746929460757,-400.0,0.00019994,2]
[360688623,1746929460767,-400.0,0.00019994,2]
[360688624,1746929460778,-400.0,0.00019994,2]
[360688625,1746929460787,-398.95827827,0.00019994,2]
[360688626,1746929460797,-400.0,0.00019994,2]
[360688627,1746929460806,-297.503769,0.00019994,2]
[360688628,1746929460816,-151.0,0.00019994,2]
[360688629,1746929460827,-151.431599,0.00019994,2]
[360688630,1746929460836,-151.0,0.00019994,2]
[360688631,1746929460846,-151.0,0.00019994,2]
[360688632,1746929460856,-262.748854,0.00019994,2]
[360688633,1746929460865,-262.748854,0.00019994,2]
[360688634,1746929460874,-548.96415104,0.00019994,2]
[360688635,1746929460883,-151.0,0.00019994,2]
[360688636,1746929460893,-499.54,0.00019994,2]
[360688637,1746929460903,-400.0,0.00019994,2]
[360688638,1746929460912,-930.29,0.00019994,2]
[360688639,1746929460921,-400.0,0.00019994,2]
[360688640,1746929460931,-400.0,0.00019994,2]
[360688641,1746929460943,-400.0,0.00019994,2]
[360688642,1746929460953,-459.74,0.00019994,2]
[360688643,1746929460962,-481.41,0.00019994,2]
[360688644,1746929460971,-400.0,0.00019994,2]
[360688645,1746929460981,-830.57,0.00019994,2]
[360688646,1746929460991,-400.0,0.00019994,2]
[360688647,1746929461000,-469.57,0.00019994,2]
[360688648,1746929461010,-400.0,0.00019994,2]
[360688649,1746929461020,-523.99395225,0.00019994,2]
[360688650,1746929461030,-400.0,0.00019994,2]
[360688651,1746929461039,-497.73,0.00019994,2]
[360688652,1746929461048,-592.98,0.00019994,2]
[360688653,1746929461058,-400.0,0.00019994,2]
[360688654,1746929461068,-400.0,0.00019994,2]
[360688655,1746929461078,-542.69,0.00019994,2]
[360688656,1746929461087,-264.7045125,0.00019994,2]
[360688657,1746929461097,-553.01,0.00019994,2]
[360688658,1746929461107,-400.0,0.00019994,2]
[360688659,1746929461117,-182.53477617,0.00019995,2]
[360688660,1746929461127,-425.61532054,0.00019995,2]
[360688661,1746929461136,-400.0,0.00019995,2]
[360688662,1746929461146,-411.46558292,0.00019995,2]
[360688663,1746929461155,-402.08070003,0.00019995,2]
[360688664,1746929461164,-400.0,0.00019995,2]
[360688665,1746929461174,-470.05,0.00019995,2]
[360688666,1746929461183,-400.0,0.00019995,2]
[360688667,1746929461195,-400.0,0.00019995,2]
[360688668,1746929461205,-403.71558674,0.00019995,2]
[360688669,1746929461214,-400.0,0.00019995,2]
[360688670,1746929461225,-404.00170472,0.00019995,2]
[360688671,1746929461234,-406.42219586,0.00019995,2]
[360688672,1746929461244,-404.89604297,0.00019995,2]
[360688673,1746929461254,-400.0,0.00019995,2]
[360688674,1746929461263,-499.31,0.00019995,2]
[360688675,1746929461273,-404.98066088,0.00019995,2]
[360688676,1746929461283,-411.07865529,0.00019995,2]
[360688677,1746929461293,-1002.38666789,0.00019995,2]
[360688678,1746929461303,-401.2358912,0.00019995,2]
[360688679,1746929461312,-400.96380772,0.00019995,2]
[360688680,1746929461321,-405.97612811,0.00019995,2]
[360688681,1746929461330,-403.08794298,0.00019995,2]
[360688682,1746929461340,-441.4318519,0.00019995,2]
[360688683,1746929461349,-408.51628477,0.00019995,2]
[360688684,1746929461358,-400.0,0.00019995,2]
[360688685,1746929461367,-400.0,0.00019995,2]
[360688686,1746929461377,-402.55797208,0.00019995,2]
[360688687,1746929461386,-300.0,0.00019995,2]
[360688688,1746929461396,-402.58271861,0.00019995,2]
[360688689,1746929461405,-400.0,0.00019995,2]
[360688690,1746929461415,-400.0,0.00019995,2]
[360688691,1746929461426,-400.0,0.00019995,2]
[360688692,1746929461436,-401.69524257,0.00019995,2]
[360688693,1746929461446,-421.34030808,0.00019995,2]
[360688694,1746929461456,-400.0,0.00019995,2]
[360688695,1746929461470,-402.64938341,0.00019995,2]
[360688696,1746929461480,-327.10749391,0.00019995,2]
[360688697,1746929461492,-400.0,0.00019995,2]
[360688698,1746929461504,-400.0,0.00019995,2]
[360688699,1746929461514,-414.19674384,0.00019995,2]
[360688700,1746929461524,-400.55613146,0.00019995,2]
[360688701,1746929461535,-403.37011764,0.00019995,2]
[360688702,1746929461545,-401.4283184,0.00019995,2]
[360688703,1746929461555,-529.03695862,0.00019995,2]
[360688704,1746929461565,-403.5465791,0.00019995,2]
[360688705,1746929461576,-402.38916232,0.00019995,2]
[360688706,1746929461587,-402.20340795,0.00019995,2]
[360688707,1746929461597,-514.25482595,0.00019995,2]
[360688708,1746929461606,-429.61253624,0.00019995,2]
[360688709,1746929461616,-407.07160335,0.00019995,2]
[360688710,1746929461626,-428.39492948,0.00019995,2]
[360688711,1746929461635,-402.2255753,0.00019995,2]
[360688712,1746929461645,-400.94449639,0.00019995,2]
[360688713,1746929461655,-403.45260217,0.00019995,2]
[360688714,1746929461665,-174.48133717,0.00019995,2]
[360688715,1746929461674,-403.41871269,0.00019995,2]
[360688716,1746929461684,-419.58,0.00019995,2]
[360688717,1746929461696,-349.64519598,0.00019995,2]
[360688718,1746929461706,-400.92578408,0.00019995,2]
[360688719,1746929461716,-400.0,0.00019995,2]
[360688720,1746929461726,-400.0,0.00019995,2]
[360688721,1746929461736,-400.0,0.00019995,2]
[360688722,1746929461746,-382.16923395,0.00019995,2]
[360688723,1746929461756,-410.92061604,0.00019995,2]
[360688724,1746929461766,-516.14039879,0.00019995,2]
[360688725,1746929461776,-404.17630023,0.00019995,2]
[360688726,1746929461787,-400.0,0.00019995,2]
[360688727,1746929461796,-404.96011459,0.00019995,2]
[360688728,1746929461806,-235.21657162,0.00019995,2]
[360688729,1746929461816,-546.68567419,0.00019995,2]
[360688730,1746929461826,-502.08186397,0.00019995,2]
[360688731,1746929461836,-400.0,0.00019995,2]
[360688732,1746929461846,-453.52729457,0.00019995,2]
[360688733,1746929461855,-400.0,0.00019995,2]
[360688734,1746929461866,-416.49491921,0.00019995,2]
[360688735,1746929461876,-437.46429477,0.00019995,2]
[360688736,1746929461886,-309.08094857,0.00019995,2]
[360688737,1746929461896,-400.0,0.00019995,2]
[360688738,1746929461905,-420.78889657,0.00019995,2]
[360688739,1746929461915,-400.0,0.00019995,2]
[360688740,1746929461925,-492.36,0.00019995,2]
[360688741,1746929461934,-414.71696253,0.00019995,2]
[360688742,1746929461945,-400.0,0.00019995,2]
[360688743,1746929461955,-400.0,0.00019995,2]
[360688744,1746929461964,-400.0,0.00019995,2]
[360688745,1746929461974,-400.0,0.00019995,2]
[360688746,1746929461984,-159.687982,0.00019995,2]
[360688747,1746929461993,-400.0,0.00019995,2]
[360688748,1746929462003,-369.10962517,0.00019995,2]
[360688749,1746929462013,-400.0,0.00019995,2]
[360688750,1746929462023,-224.15254049,0.00019995,2]
[360688751,1746929462032,-400.0,0.00019995,2]
[360688752,1746929462043,-393.31094011,0.00019995,2]
[360688753,1746929462053,-400.0,0.00019995,2]
[360688754,1746929462062,-400.0,0.00019995,2]
[360688755,1746929462072,-233.07379976,0.00019995,2]
[360688756,1746929462082,-400.0,0.00019995,2]
[360688757,1746929462093,-400.0,0.00019995,2]
[360688758,1746929462103,-400.0,0.00019995,2]
[360688759,1746929462113,-429.75,0.00019995,2]
[360688760,1746929462123,-400.0,0.00019995,2]
[360688761,1746929462133,-400.0,0.00019995,2]
[360688762,1746929462143,-400.0,0.00019995,2]
[360688763,1746929462304,-424.63854821,0.00019995,2]
[360688764,1746929462314,-400.0,0.00019995,2]
[360688765,1746929462324,-505.60498521,0.00019995,2]
[360688766,1746929462335,-400.0,0.00019995,2]
[360688767,1746929462344,-400.0,0.00019995,2]
[360688768,1746929462353,-400.0,0.00019995,2]
[360688769,1746929462363,-400.0,0.00019995,2]
[360688770,1746929462372,-400.0,0.00019995,2]
[360688771,1746929462382,-400.0,0.00019995,2]
[360688772,1746929462391,-400.0,0.00019995,2]
[360688773,1746929462400,-400.0,0.00019995,2]
[360688774,1746929462410,-411.18148755,0.00019995,2]